[Event "*** Titled Tuesday Blitz"]
[Site "Chess.com"]
[Date "2020.10.20"]
[Round "2"]
[White "asms9699"]
[Black "LyonBeast"]
[Result "0-1"]
[WhiteElo "2615"]
[BlackElo "3026"]
[TimeControl "180+1"]
[EndTime "10:19:56 PDT"]
[Termination "LyonBeast won on time"]

1. c4 {[%clk 0:03:00.9]} 1... c6 {[%clk 0:02:58.8]} 2. g3 {[%clk 0:03:01.2]}
2... d5 {[%clk 0:02:56.6]} 3. Bg2 {[%clk 0:03:01.4]} 3... Nf6 {[%clk 0:02:54.1]}
4. Nf3 {[%clk 0:03:01.7]} 4... Bf5 {[%clk 0:02:50.2]} 5. cxd5 {[%clk 0:03:01]}
5... cxd5 {[%clk 0:02:49.8]} 6. Qb3 {[%clk 0:03:01.3]} 6... Bc8 {[%clk
0:02:49.8]} 7. O-O {[%clk 0:02:59.9]} 7... e6 {[%clk 0:02:49.5]} 8. Nc3 {[%clk
0:02:59.9]} 8... Nc6 {[%clk 0:02:48.7]} 9. d3 {[%clk 0:02:58.5]} 9... Be7 {[%clk
0:02:48.8]} 10. Bf4 {[%clk 0:02:58.3]} 10... O-O {[%clk 0:02:48.9]} 11. Rac1
{[%clk 0:02:58.4]} 11... Qb6 {[%clk 0:02:42.2]} 12. Qxb6 {[%clk 0:02:52.9]}
12... axb6 {[%clk 0:02:43.1]} 13. a3 {[%clk 0:02:53]} 13... Bd7 {[%clk
0:02:40.2]} 14. Ne5 {[%clk 0:02:46.5]} 14... Rfc8 {[%clk 0:02:34.9]} 15. Nxd7
{[%clk 0:02:38.4]} 15... Nxd7 {[%clk 0:02:35.8]} 16. Nb5 {[%clk 0:02:37.2]}
16... g5 {[%clk 0:02:30.1]} 17. Bd2 {[%clk 0:02:26.4]} 17... Nc5 {[%clk
0:02:23.5]} 18. Rc2 {[%clk 0:02:19.7]} 18... h6 {[%clk 0:02:13.1]} 19. b4 {[%clk
0:02:08.9]} 19... Nd7 {[%clk 0:02:09.2]} 20. Rfc1 {[%clk 0:01:58]} 20... Kf8
{[%clk 0:02:08.6]} 21. h4 {[%clk 0:01:45.9]} 21... Ke8 {[%clk 0:02:08]} 22. hxg5
{[%clk 0:01:38.6]} 22... hxg5 {[%clk 0:02:08.9]} 23. Be3 {[%clk 0:01:30.6]}
23... Kd8 {[%clk 0:02:02.9]} 24. Nd4 {[%clk 0:01:23.6]} 24... Rxa3 {[%clk
0:01:22]} 25. Nxc6+ {[%clk 0:01:23.2]} 25... bxc6 {[%clk 0:01:21.8]} 26. Rxc6
{[%clk 0:01:23.8]} 26... Rxc6 {[%clk 0:01:19.6]} 27. Rxc6 {[%clk 0:01:24.7]}
27... b5 {[%clk 0:01:19.6]} 28. Bb6+ {[%clk 0:01:17.3]} 28... Nxb6 {[%clk
0:01:19.4]} 29. Rxb6 {[%clk 0:01:18.2]} 29... Ra2 {[%clk 0:01:17.6]} 30. Bf3
{[%clk 0:01:14]} 30... Bxb4 {[%clk 0:00:56.2]} 31. Rxb5 {[%clk 0:01:13.9]} 31...
Bd6 {[%clk 0:00:56.8]} 32. Kg2 {[%clk 0:01:13.3]} 32... f5 {[%clk 0:00:55.3]}
33. g4 {[%clk 0:01:12.9]} 33... f4 {[%clk 0:00:55.8]} 34. Rb7 {[%clk 0:01:09.3]}
34... Bc7 {[%clk 0:00:55.3]} 35. Rb1 {[%clk 0:01:05.8]} 35... Kd7 {[%clk
0:00:54.6]} 36. Rh1 {[%clk 0:01:06.3]} 36... Bd8 {[%clk 0:00:54.2]} 37. Rh7+
{[%clk 0:01:06.1]} 37... Kd6 {[%clk 0:00:54.6]} 38. Rg7 {[%clk 0:01:04.2]} 38...
Bf6 {[%clk 0:00:54.2]} 39. Rf7 {[%clk 0:01:03.5]} 39... Bd4 {[%clk 0:00:49.5]}
40. Rh7 {[%clk 0:01:03]} 40... Ra8 {[%clk 0:00:45.3]} 41. Rh6 {[%clk 0:01:02.2]}
41... Rg8 {[%clk 0:00:44.2]} 42. Rh1 {[%clk 0:00:59.5]} 42... Rg6 {[%clk
0:00:42.9]} 43. Rh5 {[%clk 0:00:59.4]} 43... e5 {[%clk 0:00:42.4]} 44. Rh1
{[%clk 0:00:58.5]} 44... Re6 {[%clk 0:00:42.1]} 45. Rd1 {[%clk 0:00:52.1]} 45...
Re8 {[%clk 0:00:40.3]} 46. Kf1 {[%clk 0:00:51.1]} 46... Bc5 {[%clk 0:00:35.8]}
47. Bg2 {[%clk 0:00:50.4]} 47... Kc6 {[%clk 0:00:36.2]} 48. Rc1 {[%clk
0:00:50.3]} 48... Kd6 {[%clk 0:00:35.5]} 49. Rb1 {[%clk 0:00:49.5]} 49... e4
{[%clk 0:00:35.2]} 50. dxe4 {[%clk 0:00:49.4]} 50... dxe4 {[%clk 0:00:36.1]} 51.
Rd1+ {[%clk 0:00:49.6]} 51... Ke5 {[%clk 0:00:36.2]} 52. Rc1 {[%clk 0:00:47.5]}
52... Bd6 {[%clk 0:00:35.5]} 53. Rc4 {[%clk 0:00:47.4]} 53... Kd5 {[%clk
0:00:35.1]} 54. Ra4 {[%clk 0:00:47.5]} 54... Bc5 {[%clk 0:00:34.7]} 55. Ke1
{[%clk 0:00:47.2]} 55... Bd4 {[%clk 0:00:33.5]} 56. e3 {[%clk 0:00:45.3]} 56...
fxe3 {[%clk 0:00:32.8]} 57. fxe3 {[%clk 0:00:46.2]} 57... Bxe3 {[%clk
0:00:33.4]} 58. Ke2 {[%clk 0:00:46.7]} 58... Bd4 {[%clk 0:00:32.8]} 59. Ra5+
{[%clk 0:00:47.1]} 59... Bc5 {[%clk 0:00:33.2]} 60. Ra4 {[%clk 0:00:47.6]} 60...
Bb6 {[%clk 0:00:33.4]} 61. Rb4 {[%clk 0:00:47.2]} 61... Bd4 {[%clk 0:00:33.7]}
62. Rb5+ {[%clk 0:00:47.1]} 62... Bc5 {[%clk 0:00:34.3]} 63. Ra5 {[%clk
0:00:46.5]} 63... Kc4 {[%clk 0:00:28.6]} 64. Ra4+ {[%clk 0:00:44.3]} 64... Bb4
{[%clk 0:00:27.7]} 65. Ra1 {[%clk 0:00:43.8]} 65... e3 {[%clk 0:00:25.8]} 66.
Rc1+ {[%clk 0:00:37.6]} 66... Kd4 {[%clk 0:00:24.7]} 67. Rf1 {[%clk 0:00:36.2]}
67... Bd2 {[%clk 0:00:17.3]} 68. Rf5 {[%clk 0:00:34.8]} 68... Rg8 {[%clk
0:00:18]} 69. Rd5+ {[%clk 0:00:33.4]} 69... Kc4 {[%clk 0:00:18.6]} 70. Rf5
{[%clk 0:00:33.9]} 70... Rg7 {[%clk 0:00:18.9]} 71. Bd5+ {[%clk 0:00:33.7]}
71... Kd4 {[%clk 0:00:19.4]} 72. Bf3 {[%clk 0:00:34.2]} 72... Kc4 {[%clk
0:00:18.2]} 73. Bd5+ {[%clk 0:00:33.6]} 73... Kc3 {[%clk 0:00:18.7]} 74. Bf3
{[%clk 0:00:33.6]} 74... Rh7 {[%clk 0:00:18.5]} 75. Kf1 {[%clk 0:00:06.9]} 75...
Rh2 {[%clk 0:00:16.9]} 76. Be2 {[%clk 0:00:07]} 76... Rh1+ {[%clk 0:00:15.3]}
77. Kg2 {[%clk 0:00:07]} 77... Rh8 {[%clk 0:00:15.3]} 78. Kf3 {[%clk 0:00:07.3]}
78... Rh2 {[%clk 0:00:14.7]} 79. Rc5+ {[%clk 0:00:05.5]} 79... Kd4 {[%clk
0:00:14.8]} 80. Rc4+ {[%clk 0:00:04.6]} 80... Kd5 {[%clk 0:00:15.3]} 81. Bd3
{[%clk 0:00:05.1]} 81... Rf2+ {[%clk 0:00:15.3]} 82. Kg3 {[%clk 0:00:05.4]}
82... e2 {[%clk 0:00:15.7]} 83. Bxe2 {[%clk 0:00:01.6]} 83... Rxe2 {[%clk
0:00:16.6]} 84. Ra4 {[%clk 0:00:01.8]} 84... Bf4+ {[%clk 0:00:16.1]} 85. Kf3
{[%clk 0:00:01.8]} 85... Re3+ {[%clk 0:00:16.3]} 86. Kf2 {[%clk 0:00:01.6]}
86... Rc3 {[%clk 0:00:17.2]} 0-1

[Event "*** Titled Tuesday Blitz"]
[Site "Chess.com"]
[Date "2020.10.20"]
[Round "2"]
[White "Sacbutt"]
[Black "SCIM"]
[Result "0-1"]
[WhiteElo "2290"]
[BlackElo "2485"]
[TimeControl "180+1"]
[EndTime "10:20:22 PDT"]
[Termination "SCIM won on time"]

1. e4 {[%clk 0:03:00.9]} 1... c5 {[%clk 0:02:57.3]} 2. Nf3 {[%clk 0:03:00.8]}
2... e6 {[%clk 0:02:57.8]} 3. d4 {[%clk 0:03:00.9]} 3... cxd4 {[%clk 0:02:58.3]}
4. c3 {[%clk 0:03:01.5]} 4... Nf6 {[%clk 0:02:56.7]} 5. e5 {[%clk 0:02:59.2]}
5... Nd5 {[%clk 0:02:52.8]} 6. cxd4 {[%clk 0:03:00.1]} 6... d6 {[%clk
0:02:52.6]} 7. Nc3 {[%clk 0:02:59.6]} 7... Nxc3 {[%clk 0:02:51.9]} 8. bxc3
{[%clk 0:03:00.5]} 8... Qc7 {[%clk 0:02:52.6]} 9. Bd2 {[%clk 0:02:59.5]} 9...
Bd7 {[%clk 0:02:52.5]} 10. Bd3 {[%clk 0:02:58]} 10... Bc6 {[%clk 0:02:51.5]} 11.
O-O {[%clk 0:02:46.1]} 11... Nd7 {[%clk 0:02:50.9]} 12. exd6 {[%clk 0:02:44]}
12... Bxd6 {[%clk 0:02:50.2]} 13. h3 {[%clk 0:02:44.5]} 13... O-O {[%clk
0:02:42.9]} 14. Rc1 {[%clk 0:02:23.8]} 14... h6 {[%clk 0:02:28.5]} 15. Re1
{[%clk 0:02:19.6]} 15... Rfe8 {[%clk 0:02:21.8]} 16. c4 {[%clk 0:02:12]} 16...
Nf6 {[%clk 0:02:10.9]} 17. Qb3 {[%clk 0:02:01]} 17... Bxf3 {[%clk 0:02:06.9]}
18. gxf3 {[%clk 0:02:01.9]} 18... Bf4 {[%clk 0:02:04.4]} 19. Bxf4 {[%clk
0:01:55.9]} 19... Qxf4 {[%clk 0:02:03]} 20. Rcd1 {[%clk 0:01:43.5]} 20... b6
{[%clk 0:01:59.9]} 21. Be4 {[%clk 0:01:41.9]} 21... Rad8 {[%clk 0:01:58.2]} 22.
Qe3 {[%clk 0:01:41.2]} 22... Qc7 {[%clk 0:01:54.4]} 23. c5 {[%clk 0:01:37.5]}
23... Nd5 {[%clk 0:01:50.5]} 24. Bxd5 {[%clk 0:01:36.1]} 24... Rxd5 {[%clk
0:01:51.4]} 25. cxb6 {[%clk 0:01:16.5]} 25... Qxb6 {[%clk 0:01:48.8]} 26. Re2
{[%clk 0:01:12.7]} 26... Red8 {[%clk 0:01:46.9]} 27. Red2 {[%clk 0:01:11.9]}
27... e5 {[%clk 0:01:44.4]} 28. Qb3 {[%clk 0:01:06.4]} 28... Qg6+ {[%clk
0:01:30.5]} 29. Kh2 {[%clk 0:00:33.6]} 29... exd4 {[%clk 0:01:31.4]} 30. Qa4
{[%clk 0:00:31.2]} 30... Qd6+ {[%clk 0:01:28.2]} 31. Kg2 {[%clk 0:00:29.7]}
31... Rg5+ {[%clk 0:01:15.6]} 32. Kf1 {[%clk 0:00:23.7]} 32... Qh2 {[%clk
0:00:25.4]} 33. Rxd4 {[%clk 0:00:22.5]} 33... Rg1+ {[%clk 0:00:25]} 34. Ke2
{[%clk 0:00:22.7]} 34... Rxd1 {[%clk 0:00:19.4]} 35. Rxd1 {[%clk 0:00:19.2]}
35... Qe5+ {[%clk 0:00:19.2]} 36. Kf1 {[%clk 0:00:18.7]} 36... Re8 {[%clk
0:00:18.4]} 37. Qc2 {[%clk 0:00:17.8]} 37... Qe6 {[%clk 0:00:17.2]} 38. Qd2
{[%clk 0:00:16.5]} 38... Qxh3+ {[%clk 0:00:16.2]} 39. Kg1 {[%clk 0:00:17.4]}
39... Qe6 {[%clk 0:00:15.8]} 40. Kf1 {[%clk 0:00:15.2]} 40... Qa6+ {[%clk
0:00:14.9]} 41. Kg2 {[%clk 0:00:15.3]} 41... Qg6+ {[%clk 0:00:15.2]} 42. Kf1
{[%clk 0:00:15.6]} 42... Kh7 {[%clk 0:00:15.8]} 43. Qd3 {[%clk 0:00:15.1]} 43...
Re6 {[%clk 0:00:13]} 44. Qxg6+ {[%clk 0:00:13.4]} 44... Kxg6 {[%clk 0:00:13.9]}
45. Rd7 {[%clk 0:00:13.6]} 45... Ra6 {[%clk 0:00:14.4]} 46. Rd2 {[%clk
0:00:13.8]} 46... f5 {[%clk 0:00:14.4]} 47. Kg2 {[%clk 0:00:14.2]} 47... Kg5
{[%clk 0:00:14.9]} 48. Kg3 {[%clk 0:00:14.4]} 48... Ra4 {[%clk 0:00:14.7]} 49.
Rb2 {[%clk 0:00:13.7]} 49... h5 {[%clk 0:00:14.6]} 50. Rc2 {[%clk 0:00:13.2]}
50... h4+ {[%clk 0:00:14.5]} 51. Kh3 {[%clk 0:00:13.7]} 51... Ra3 {[%clk
0:00:14.9]} 52. Kg2 {[%clk 0:00:13.7]} 52... g6 {[%clk 0:00:15.4]} 53. Rb2
{[%clk 0:00:13.8]} 53... a5 {[%clk 0:00:15.5]} 54. Rc2 {[%clk 0:00:13.8]} 54...
h3+ {[%clk 0:00:15.4]} 55. Kxh3 {[%clk 0:00:13.5]} 55... Rxf3+ {[%clk
0:00:15.3]} 56. Kg2 {[%clk 0:00:14.1]} 56... Ra3 {[%clk 0:00:16.2]} 57. Rb2
{[%clk 0:00:14.2]} 57... Kg4 {[%clk 0:00:16.1]} 58. Rc2 {[%clk 0:00:13.9]} 58...
g5 {[%clk 0:00:16.2]} 59. Rc4+ {[%clk 0:00:14]} 59... f4 {[%clk 0:00:16.4]} 60.
Rc2 {[%clk 0:00:13.4]} 60... a4 {[%clk 0:00:16.8]} 61. Rd2 {[%clk 0:00:13.3]}
61... Rc3 {[%clk 0:00:16.5]} 62. Rd4 {[%clk 0:00:12]} 62... a3 {[%clk
0:00:16.1]} 63. Ra4 {[%clk 0:00:11.9]} 63... Kh5 {[%clk 0:00:13.5]} 64. Rb4
{[%clk 0:00:11.3]} 64... Kh4 {[%clk 0:00:13.1]} 65. Ra4 {[%clk 0:00:11.6]} 65...
Kh5 {[%clk 0:00:11.5]} 66. Kg1 {[%clk 0:00:11]} 66... f3 {[%clk 0:00:10.5]} 67.
Kh2 {[%clk 0:00:11.3]} 67... Rc2 {[%clk 0:00:09.3]} 68. Rxa3 {[%clk 0:00:11.6]}
68... Rxf2+ {[%clk 0:00:09.1]} 69. Kg3 {[%clk 0:00:12.1]} 69... Rb2 {[%clk
0:00:05.5]} 70. Kxf3 {[%clk 0:00:10.6]} 70... Kh4 {[%clk 0:00:04.7]} 71. Ra8
{[%clk 0:00:09.3]} 71... g4+ {[%clk 0:00:04.4]} 72. Kf4 {[%clk 0:00:09.4]} 72...
Rf2+ {[%clk 0:00:04.3]} 73. Ke3 {[%clk 0:00:09.2]} 73... Kg3 {[%clk 0:00:04.6]}
74. a4 {[%clk 0:00:08.6]} 74... Rf3+ {[%clk 0:00:05.1]} 75. Ke2 {[%clk
0:00:08.5]} 75... Ra3 {[%clk 0:00:06]} 76. a5 {[%clk 0:00:08.4]} 76... Kg2
{[%clk 0:00:06.2]} 77. a6 {[%clk 0:00:08.9]} 77... g3 {[%clk 0:00:06.7]} 78. a7
{[%clk 0:00:09.3]} 78... Ra6 {[%clk 0:00:06.9]} 79. Ke1 {[%clk 0:00:08.8]} 79...
Kg1 {[%clk 0:00:06.5]} 80. Ke2 {[%clk 0:00:08.9]} 80... g2 {[%clk 0:00:06.8]}
81. Kd2 {[%clk 0:00:08.5]} 81... Rd6+ {[%clk 0:00:06.5]} 82. Ke2 {[%clk
0:00:08.9]} 82... Rd7 {[%clk 0:00:06.6]} 83. Ke3 {[%clk 0:00:08.9]} 83... Re7+
{[%clk 0:00:06.7]} 84. Kf3 {[%clk 0:00:08.4]} 84... Rf7+ {[%clk 0:00:07.6]} 85.
Ke4 {[%clk 0:00:08.5]} 85... Kf1 {[%clk 0:00:07.3]} 86. Rg8 {[%clk 0:00:07]}
86... Rxa7 {[%clk 0:00:06.3]} 87. Rf8+ {[%clk 0:00:07.1]} 87... Kg1 {[%clk
0:00:06.1]} 88. Ke3 {[%clk 0:00:06]} 88... Rh7 {[%clk 0:00:06.3]} 89. Ke2 {[%clk
0:00:05.8]} 89... Kh1 {[%clk 0:00:06.4]} 0-1

[Event "*** Titled Tuesday Blitz"]
[Site "Chess.com"]
[Date "2020.10.20"]
[Round "2"]
[White "ChessQueen"]
[Black "PriSachu"]
[Result "1-0"]
[WhiteElo "2705"]
[BlackElo "2438"]
[TimeControl "180+1"]
[EndTime "10:20:28 PDT"]
[Termination "ChessQueen won by resignation"]

1. e4 {[%clk 0:03:00.9]} 1... e5 {[%clk 0:02:57.7]} 2. Nf3 {[%clk 0:03:00.7]}
2... Nc6 {[%clk 0:02:56.5]} 3. Bb5 {[%clk 0:03:00.6]} 3... a6 {[%clk 0:02:56.2]}
4. Ba4 {[%clk 0:03:00.6]} 4... Nf6 {[%clk 0:02:55.5]} 5. O-O {[%clk 0:03:00.5]}
5... Bc5 {[%clk 0:02:54.3]} 6. c3 {[%clk 0:02:58.1]} 6... O-O {[%clk 0:02:53.4]}
7. d4 {[%clk 0:02:57]} 7... Ba7 {[%clk 0:02:53.2]} 8. Bc2 {[%clk 0:02:48.4]}
8... d6 {[%clk 0:02:50.7]} 9. h3 {[%clk 0:02:40.9]} 9... h6 {[%clk 0:02:46.3]}
10. Be3 {[%clk 0:02:39.7]} 10... Re8 {[%clk 0:02:04.4]} 11. Nbd2 {[%clk
0:02:39.1]} 11... b5 {[%clk 0:01:40.8]} 12. a4 {[%clk 0:02:34.5]} 12... Bb7
{[%clk 0:01:40.1]} 13. d5 {[%clk 0:02:34.3]} 13... Ne7 {[%clk 0:01:39.8]} 14.
Bxa7 {[%clk 0:02:31.2]} 14... Rxa7 {[%clk 0:01:39.3]} 15. axb5 {[%clk
0:02:31.2]} 15... Ng6 {[%clk 0:01:31.8]} 16. bxa6 {[%clk 0:02:03.5]} 16... Rxa6
{[%clk 0:01:24.9]} 17. Rxa6 {[%clk 0:01:55.5]} 17... Bxa6 {[%clk 0:01:25]} 18.
Re1 {[%clk 0:01:56.1]} 18... Nh5 {[%clk 0:01:20.6]} 19. Nf1 {[%clk 0:01:54.8]}
19... Bxf1 {[%clk 0:01:03.3]} 20. Rxf1 {[%clk 0:01:50.1]} 20... Nhf4 {[%clk
0:01:01.7]} 21. Kh2 {[%clk 0:01:50]} 21... Qb8 {[%clk 0:01:00.8]} 22. b4 {[%clk
0:01:45.9]} 22... Qb6 {[%clk 0:00:51.8]} 23. g3 {[%clk 0:01:38]} 23... Nh5
{[%clk 0:00:51.2]} 24. Nd2 {[%clk 0:01:37]} 24... Nf6 {[%clk 0:00:47.2]} 25. Nc4
{[%clk 0:01:35.4]} 25... Qb5 {[%clk 0:00:36]} 26. Na5 {[%clk 0:01:27.9]} 26...
Ra8 {[%clk 0:00:26.9]} 27. Qd3 {[%clk 0:01:25]} 27... Qb6 {[%clk 0:00:24.8]} 28.
Qe3 {[%clk 0:01:13]} 28... Qb5 {[%clk 0:00:23.1]} 29. Rb1 {[%clk 0:01:05.4]}
29... Nh7 {[%clk 0:00:21.6]} 30. c4 {[%clk 0:01:04.8]} 30... Qd7 {[%clk
0:00:21.4]} 31. h4 {[%clk 0:00:43]} 31... Nf6 {[%clk 0:00:20.4]} 32. Qf3 {[%clk
0:00:41.8]} 32... Ng4+ {[%clk 0:00:18.2]} 33. Kg2 {[%clk 0:00:41.9]} 33... Rf8
{[%clk 0:00:18.2]} 34. Qf5 {[%clk 0:00:40.9]} 34... Qxf5 {[%clk 0:00:16.8]} 35.
exf5 {[%clk 0:00:41]} 35... Ne7 {[%clk 0:00:17.3]} 36. Be4 {[%clk 0:00:37.8]}
36... Nf6 {[%clk 0:00:17.3]} 37. f3 {[%clk 0:00:38.3]} 37... g6 {[%clk
0:00:17.6]} 38. fxg6 {[%clk 0:00:37.4]} 38... fxg6 {[%clk 0:00:18]} 39. Rd1
{[%clk 0:00:27]} 39... Rb8 {[%clk 0:00:17.9]} 40. Rb1 {[%clk 0:00:25.2]} 40...
Kg7 {[%clk 0:00:16.3]} 41. Kf2 {[%clk 0:00:25.2]} 41... Nf5 {[%clk 0:00:16.4]}
42. Bxf5 {[%clk 0:00:23.6]} 42... gxf5 {[%clk 0:00:16.9]} 43. Nc6 {[%clk
0:00:23.3]} 43... Ra8 {[%clk 0:00:16.1]} 44. Rb2 {[%clk 0:00:23.6]} 44... Ra3
{[%clk 0:00:15.9]} 45. b5 {[%clk 0:00:23.7]} 45... e4 {[%clk 0:00:16.1]} 46. Nd4
{[%clk 0:00:21.2]} 46... exf3 {[%clk 0:00:14.8]} 47. Nxf3 {[%clk 0:00:17.5]}
47... Ne4+ {[%clk 0:00:14.9]} 48. Kg2 {[%clk 0:00:17.2]} 48... Kf6 {[%clk
0:00:15.4]} 49. b6 {[%clk 0:00:13.5]} 49... cxb6 {[%clk 0:00:15.1]} 50. Rxb6
{[%clk 0:00:09.1]} 50... Ra2+ {[%clk 0:00:15.3]} 51. Kg1 {[%clk 0:00:09.6]}
51... Rc2 {[%clk 0:00:15.4]} 52. Nd4 {[%clk 0:00:07.7]} 52... Rxc4 {[%clk
0:00:14.1]} 53. Ne6 {[%clk 0:00:07.4]} 53... Rc1+ {[%clk 0:00:13.7]} 54. Kg2
{[%clk 0:00:07.3]} 54... Rc2+ {[%clk 0:00:14.1]} 55. Kf3 {[%clk 0:00:07.4]}
55... Rf2+ {[%clk 0:00:13.1]} 56. Ke3 {[%clk 0:00:07.4]} 56... Rg2 {[%clk
0:00:13.4]} 57. Nf4 {[%clk 0:00:06.8]} 57... Rxg3+ {[%clk 0:00:13.4]} 58. Ke2
{[%clk 0:00:07.4]} 58... Ke5 {[%clk 0:00:13.5]} 59. Nd3+ {[%clk 0:00:06.4]}
59... Kxd5 {[%clk 0:00:13.7]} 60. Rb5+ {[%clk 0:00:06.8]} 60... Ke6 {[%clk
0:00:13.8]} 61. Nf4+ {[%clk 0:00:07.3]} 61... Kf6 {[%clk 0:00:13.9]} 62. Nh5+
{[%clk 0:00:07.3]} 62... Kg6 {[%clk 0:00:14.1]} 63. Nxg3 {[%clk 0:00:08.2]}
63... Nxg3+ {[%clk 0:00:14.4]} 64. Kf3 {[%clk 0:00:09.1]} 64... Ne4 {[%clk
0:00:14.6]} 65. Rb8 {[%clk 0:00:09.5]} 65... Nf6 {[%clk 0:00:13.5]} 66. Kg3
{[%clk 0:00:09.1]} 66... Nh5+ {[%clk 0:00:12.9]} 67. Kf3 {[%clk 0:00:08.9]}
67... Nf6 {[%clk 0:00:13.4]} 68. Rb6 {[%clk 0:00:08.3]} 68... d5 {[%clk
0:00:12.7]} 69. Rd6 {[%clk 0:00:07.8]} 69... d4 {[%clk 0:00:11.5]} 70. Kf4
{[%clk 0:00:07.7]} 70... d3 {[%clk 0:00:10.5]} 71. Rxd3 {[%clk 0:00:07.7]} 71...
Ng4 {[%clk 0:00:09.2]} 72. Rd6+ {[%clk 0:00:07.8]} 72... Kh5 {[%clk 0:00:09.5]}
73. Kg3 {[%clk 0:00:08]} 73... f4+ {[%clk 0:00:08.5]} 74. Kh3 {[%clk 0:00:07.9]}
74... Nf2+ {[%clk 0:00:08.2]} 75. Kg2 {[%clk 0:00:08.2]} 75... Ng4 {[%clk
0:00:08.2]} 76. Kh3 {[%clk 0:00:07.3]} 76... Nf2+ {[%clk 0:00:07.1]} 77. Kg2
{[%clk 0:00:07.6]} 77... Ng4 {[%clk 0:00:07.2]} 78. Kf3 {[%clk 0:00:08.5]} 78...
Kxh4 {[%clk 0:00:06.3]} 79. Kxf4 {[%clk 0:00:08.9]} 79... h5 {[%clk 0:00:06.6]}
80. Rd1 {[%clk 0:00:09.1]} 80... Kh3 {[%clk 0:00:06.6]} 81. Kf3 {[%clk
0:00:09.7]} 81... Nh2+ {[%clk 0:00:06.2]} 82. Kf2 {[%clk 0:00:10]} 82... Ng4+
{[%clk 0:00:06.2]} 83. Kf3 {[%clk 0:00:10.5]} 83... Nh2+ {[%clk 0:00:06.3]} 84.
Kf4 {[%clk 0:00:11]} 84... Ng4 {[%clk 0:00:06.3]} 85. Rd2 {[%clk 0:00:10.7]}
85... h4 {[%clk 0:00:04.4]} 86. Rc2 {[%clk 0:00:10.4]} 86... Nh2 {[%clk
0:00:03.4]} 87. Rd2 {[%clk 0:00:10]} 87... Ng4 {[%clk 0:00:03.3]} 88. Rd3+
{[%clk 0:00:10.2]} 88... Kg2 {[%clk 0:00:03]} 89. Kxg4 {[%clk 0:00:10.7]} 89...
h3 {[%clk 0:00:03.1]} 90. Rxh3 {[%clk 0:00:10.7]} 1-0